[Event "ESP-ch Seniors 2017"]
[Site "Altea"]
[Date "2017.10.07"]
[Round "1"]
[White "Pelegri Castello, Elias"]
[Black "Nunez Munoz, Jesus"]
[Result "1-0"]
[ECO "A30"]
[WhiteElo "1903"]
[BlackElo "2199"]
[Annotator "ChessBase"]
[PlyCount "167"]
[EventDate "2017.??.??"]
[EventType "swiss"]
[EventCountry "ESP"]
[SourceTitle "playchess.com"]
[Source "ChessBase"]
[SourceQuality "1"]
[TimeControl "5400+30"]

1. Nf3 {[%emt 0:05:57]} Nf6 {[%emt 0:00:10]} 2. c4 {[%emt 0:00:09]} e6 {[%emt 0:00:29]} 3. g3 {[%emt 0:00:27]} b6 {[%emt 0:03:26]} 4. Bg2 {[%emt 0:00:32]} Bb7 {[%emt 0:00:06]} 5. O-O {[%emt 0:00:34]} c5 {[%emt 0:01:34]} 6. Nc3 {[%emt 0:02:10]} Be7 {[%emt 0:00:10]} 7. d4 {[%emt 0:01:02]} cxd4 {[%emt 0:00:21]} 8. Nxd4 {[%emt 0:05:29]} Bxg2 {[%emt 0:04:38]} 9. Kxg2 {[%emt 0:00:08]} Qc8 {[%emt 0:09:19]} 10. Qd3 {[%emt 0:03:25]} O-O {[%emt 0:04:29]} 11. Qf3 {[%emt 0:12:58]} Na6 {[%emt 0:08:27]} 12. b3 {[%emt 0:02:29]} Rd8 {[%emt 0:04:12]} 13. Bb2 {[%emt 0:05:39]} Nc5 {[%emt 0:03:11]} 14. Rac1 {[%emt 0:02:33]} Qb7 {[%emt 0:03:03]} 15. Qxb7 {[%emt 0:02:09]} Nxb7 {[%emt 0:00:11]} 16. Rfd1 {[%emt 0:00:31]} Rac8 {[%emt 0:04:20]} 17. e4 {[%emt 0:02:44]} d6 {[%emt 0:05:50]} 18. f3 {[%emt 0:07:53]} a6 {[%emt 0:01:17]} 19. Nc2 {[%emt 0:18:20]} Kf8 {[%emt 0:10:05]} 20. Ne3 {[%emt 0:00:31]} Nc5 {[%emt 0:03:53]} 21. Rd2 {[%emt 0:01:05]} h6 {[%emt 0:01:45]} 22. Rcd1 {[%emt 0:00:23]} Rb8 {[%emt 0:05:00]} 23. Nc2 {[%emt 0:04:47]} Rbc8 {[%emt 0:01:58]} 24. Ne3 {[%emt 0:00:53]} Kg8 {[%emt 0:02:29]} 25. Kf2 {[%emt 0:02:48]} Kh7 {[%emt 0:02:16]} 26. Kg2 {[%emt 0:00:11]} g5 {[%emt 0:00:58]} 27. g4 {[%emt 0:01:05]} Kg6 {[%emt 0:01:33]} 28. Ne2 {[%emt 0:05:17]} Nfd7 {[%emt 0:04:50]} 29. b4 {[%emt 0:06:02]} Nb7 {[%emt 0:00:11]} 30. a3 {[%emt 0:00:08]} Bf6 {[%emt 0:00:36]} 31. Bd4 {[%emt 0:04:12]} Bxd4 {[%emt 0:00:12]} 32. Nxd4 {[%emt 0:00:29]} Ne5 {[%emt 0:00:11]} 33. Rc2 {[%emt 0:00:30]} Kf6 {[%emt 0:00:32]} 34. Kg3 {[%emt 0:00:48]} Ke7 {[%emt 0:01:13]} 35. h4 {[%emt 0:00:23]} Kf6 {[%emt 0:03:58]} 36. h5 {[%emt 0:00:18]} Ke7 {[%emt 0:00:36]} 37. f4 {[%emt 0:00:12]} gxf4+ {[%emt 0:00:10]} 38. Kxf4 {[%emt 0:00:02]} Rg8 {[%emt 0:01:22]} 39. Nf3 {[%emt 0:00:46]} f6 {[%emt 0:04:57]} 40. Nxe5 {[%emt 0:00:12]} fxe5+ {[%emt 0:00:14]} 41. Kg3 {[%emt 0:00:22]} Nd8 {[%emt 0:01:03]} 42. Rdc1 {[%emt 0:00:35]} Nb7 {[%emt 0:01:46]} 43. Ng2 {[%emt 0:01:00]} Kd7 {[%emt 0:02:23]} 44. Nh4 {[%emt 0:00:16]} Nd8 {[%emt 0:01:17]} 45. Nf3 {[%emt 0:00:55]} Nf7 {[%emt 0:00:15]} 46. Rd2 {[%emt 0:01:12]} Ke7 {[%emt 0:00:07]} 47. Nh4 {[%emt 0:00:12]} Ng5 {[%emt 0:00:16]} 48. Re2 {[%emt 0:00:33]} Rg7 {[%emt 0:02:17]} 49. Rcc2 {[%emt 0:00:36]} Rf7 {[%emt 0:00:28]} 50. Rc1 {[%emt 0:00:36]} Kd7 {[%emt 0:00:15]} 51. Re3 {[%emt 0:01:29]} Rcf8 {[%emt 0:00:31]} 52. Rd1 {[%emt 0:00:29]} Kc6 {[%emt 0:00:43]} 53. Rdd3 {[%emt 0:00:52]} Rf1 {[%emt 0:00:42]} 54. Ng6 {[%emt 0:00:31]} Rg1+ {[%emt 0:00:21]} 55. Kh2 {[%emt 0:00:24]} Rff1 {[%emt 0:00:09]} 56. Nh4 {[%emt 0:00:58]} Rxg4 {[%emt 0:00:10]} 57. Nf3 {[%emt 0:00:38]} Rf2+ {[%emt 0:00:42]} 58. Kh1 {[%emt 0:00:19]} Nxe4 {[%emt 0:00:23]} 59. c5 {[%emt 0:00:21]} bxc5 {[%emt 0:00:05]} 60. bxc5 {[%emt 0:00:02]} Nxc5 {[%emt 0:00:09]} 61. Rc3 {[%emt 0:00:40]} Rf1+ {[%emt 0:01:40]} 62. Kh2 {[%emt 0:00:09]} Rd1 {[%emt 0:00:19]} 63. Rxe5 {[%emt 0:00:10]} Kb6 {[%emt 0:01:11]} 64. Ree3 {[%emt 0:00:58]} Re4 {[%emt 0:00:24]} 65. Rb3+ {[%emt 0:01:11]} Nxb3 {[%emt 0:00:12]} 66. Rxe4 {[%emt 0:00:01]} e5 {[%emt 0:00:00]} 67. Rb4+ {[%emt 0:00:02]} Kc5 {[%emt 0:00:04]} 68. Rxb3 {[%emt 0:00:04]} e4 {[%emt 0:00:38]} 69. Rc3+ {[%emt 0:00:33]} Kd5 {[%emt 0:00:12]} 70. Ng1 {[%emt 0:00:38]} Rd2+ {[%emt 0:00:16]} 71. Kg3 {[%emt 0:00:31]} Kd4 {[%emt 0:00:06]} 72. Rb3 {[%emt 0:00:42]} Rd3+ {[%emt 0:00:21]} 73. Rxd3+ {[%emt 0:00:09]} Kxd3 {[%emt 0:00:01]} 74. Kf2 {[%emt 0:00:49]} d5 {[%emt 0:00:04]} 75. Ke1 {[%emt 0:00:36]} d4 {[%emt 0:00:10]} 76. Ne2 {[%emt 0:01:10]} Ke3 {[%emt 0:00:08]} 77. a4 {[%emt 0:00:25]} a5 {[%emt 0:00:15]} 78. Nc1 {[%emt 0:00:30]} Kf3 {[%emt 0:02:47]} 79. Nb3 {[%emt 0:00:20]} d3 {[%emt 0:01:12]} 80. Nxa5 {[%emt 0:00:07]} e3 {[%emt 0:00:13]} 81. Nb3 {[%emt 0:00:07]} Ke4 {[%emt 0:00:21]} 82. Nc5+ {[%emt 0:00:35]} Kd4 {[%emt 0:00:05]} 83. Nxd3 {[%emt 0:00:02]} Kxd3 {[%emt 0:00:08]} 84. a5 {[%emt 0:00:02]} 1-0

[Event "ESP-ch Seniors 2017"]
[Site "Altea"]
[Date "2017.10.07"]
[Round "1"]
[White "Gomez Calvo, Jose Ricardo"]
[Black "Aranaz Portugues, Jose Carlos"]
[Result "0-1"]
[ECO "A45"]
[WhiteElo "1888"]
[BlackElo "2159"]
[Annotator "ChessBase"]
[PlyCount "76"]
[EventDate "2017.??.??"]
[EventType "swiss"]
[EventCountry "ESP"]
[SourceTitle "playchess.com"]
[Source "ChessBase"]
[SourceQuality "1"]
[TimeControl "5400+30"]

1. d4 {[%emt 0:00:00]} Nf6 {[%emt 0:00:28]} 2. Bg5 {[%emt 0:00:42]} e6 {[%emt 0:00:47]} 3. e4 {[%emt 0:00:38]} h6 {[%emt 0:00:56]} 4. Bxf6 {[%emt 0:00:14]} gxf6 {[%emt 0:01:14]} 5. Be2 {[%emt 0:08:52]} b6 {[%emt 0:06:56]} 6. Bf3 {[%emt 0:02:48]} Bb7 {[%emt 0:00:57]} 7. Ne2 {[%emt 0:01:34]} Nc6 {[%emt 0:05:14]} 8. Ng3 {[%emt 0:00:56]} Ne7 {[%emt 0:01:00]} 9. Nc3 {[%emt 0:07:14]} Ng6 {[%emt 0:00:37]} 10. Nh5 {[%emt 0:12:42]} Rg8 {[%emt 0:09:54]} 11. Qd3 {[%emt 0:08:40]} Nh4 {[%emt 0:05:29]} 12. O-O-O {[%emt 0:05:15]} Nxf3 {[%emt 0:04:35]} 13. gxf3 {[%emt 0:00:59]} Rg5 {[%emt 0:03:15]} 14. Nf4 {[%emt 0:02:07]} a5 {[%emt 0:01:29]} 15. h4 {[%emt 0:03:57]} Rg8 {[%emt 0:02:09]} 16. Nh5 {[%emt 0:04:49]} Qe7 {[%emt 0:07:34]} 17. Nb5 {[%emt 0:03:22]} O-O-O {[%emt 0:01:03]} 18. c4 {[%emt 0:00:12]} c6 {[%emt 0:01:23]} 19. Nc3 {[%emt 0:00:13]} Ba6 {[%emt 0:00:06]} 20. d5 {[%emt 0:07:35]} Qc5 {[%emt 0:08:03]} 21. dxc6 {[%emt 0:04:17]} Qxc6 {[%emt 0:06:13]} 22. b3 {[%emt 0:08:16]} Ba3+ {[%emt 0:00:42]} 23. Kb1 {[%emt 0:00:16]} Qc5 {[%emt 0:01:00]} 24. Na4 {[%emt 0:04:33]} Qxh5 {[%emt 0:07:27]} 25. Nxb6+ {[%emt 0:01:39]} Kc7 {[%emt 0:02:10]} 26. Nxd7 {[%emt 0:06:41]} Bc8 {[%emt 0:03:57]} 27. Qe3 {[%emt 0:00:06]} Rxd7 {[%emt 0:00:19]} 28. Qa7+ {[%emt 0:01:49]} Kc6 {[%emt 0:06:20]} 29. Rxd7 {[%emt 0:01:48]} Qe5 {[%emt 0:01:43]} 30. Rd2 {[%emt 0:01:00]} Rd8 {[%emt 0:04:50]} 31. Qa8+ {[%emt 0:00:42]} Kc7 {[%emt 0:00:48]} 32. Qa7+ {[%emt 0:00:22]} Bb7 {[%emt 0:00:56]} 33. Rhd1 {[%emt 0:00:21]} Rxd2 {[%emt 0:00:27]} 34. Rxd2 {[%emt 0:00:02]} Qc3 {[%emt 0:00:26]} 35. Rd7+ {[%emt 0:00:40]} Kxd7 {[%emt 0:00:19]} 36. Qxb7+ {[%emt 0:00:01]} Ke8 {[%emt 0:00:40]} 37. Qc8+ {[%emt 0:00:10]} Ke7 {[%emt 0:00:06]} 38. Qc7+ {[%emt 0:00:13]} Kf8 {[%emt 0:00:01]} 0-1

[Event "ESP-ch Seniors 2017"]
[Site "Altea"]
[Date "2017.10.07"]
[Round "1"]
[White "Albert Garrote, Amadeo"]
[Black "Cantero Navarro, Antonio"]
[Result "0-1"]
[ECO "D02"]
[WhiteElo "1883"]
[BlackElo "2153"]
[Annotator "ChessBase"]
[PlyCount "50"]
[EventDate "2017.??.??"]
[EventType "swiss"]
[EventCountry "ESP"]
[SourceTitle "playchess.com"]
[Source "ChessBase"]
[SourceQuality "1"]
[TimeControl "5400+30"]

1. d4 {[%emt 0:04:11]} d5 {[%emt 0:00:36]} 2. Bf4 {[%emt 0:00:42]} Nf6 {[%emt 0:00:15]} 3. Nf3 {[%emt 0:00:16]} e6 {[%emt 0:04:44]} 4. Nbd2 {[%emt 0:01:33]} c5 {[%emt 0:00:15]} 5. e3 {[%emt 0:00:26]} Nc6 {[%emt 0:00:15]} 6. c3 {[%emt 0:01:23]} Be7 {[%emt 0:02:00]} 7. Bd3 {[%emt 0:00:58]} Nh5 {[%emt 0:00:36]} 8. Bg3 {[%emt 0:01:33]} f5 {[%emt 0:01:57]} 9. Ne5 {[%emt 0:00:41]} g6 {[%emt 0:07:57]} 10. Ndf3 {[%emt 0:08:52]} O-O {[%emt 0:07:35]} 11. Nxc6 {[%emt 0:05:32]} bxc6 {[%emt 0:00:15]} 12. Ne5 {[%emt 0:01:52]} Qb6 {[%emt 0:11:05]} 13. Rb1 {[%emt 0:03:52]} cxd4 {[%emt 0:00:10]} 14. exd4 {[%emt 0:11:05]} c5 {[%emt 0:02:22]} 15. dxc5 {[%emt 0:09:39]} Bxc5 {[%emt 0:09:13]} 16. Qd2 {[%emt 0:05:29]} a5 {[%emt 0:04:16]} 17. Qh6 {[%emt 0:05:52]} Ra7 {[%emt 0:05:32]} 18. Be2 {[%emt 0:02:36]} Nxg3 {[%emt 0:00:57]} 19. hxg3 {[%emt 0:00:13]} Bxf2+ {[%emt 0:00:34]} 20. Kf1 {[%emt 0:00:59]} Bxg3 {[%emt 0:00:42]} 21. Nd3 {[%emt 0:01:05]} Ba6 {[%emt 0:00:25]} 22. Rh3 {[%emt 0:07:05]} Bxd3 {[%emt 0:00:47]} 23. Rxg3 {[%emt 0:00:14]} Bxb1 {[%emt 0:00:08]} 24. Bh5 {[%emt 0:01:16]} f4 {[%emt 0:00:52]} 25. Rg5 {[%emt 0:02:23]} Bd3+ {[%emt 0:01:58]} 0-1

[Event "ESP-ch Seniors 2017"]
[Site "Altea"]
[Date "2017.10.07"]
[Round "1"]
[White "Lopez Heras, Arturo"]
[Black "Celaya Tapiz, Jose Maria"]
[Result "0-1"]
[ECO "D96"]
[WhiteElo "1856"]
[BlackElo "2196"]
[Annotator "ChessBase"]
[PlyCount "88"]
[EventDate "2017.??.??"]
[EventType "swiss"]
[EventCountry "ESP"]
[SourceTitle "playchess.com"]
[Source "ChessBase"]
[SourceQuality "1"]
[TimeControl "5400+30"]

1. d4 {[%emt 0:01:04]} d5 {[%emt 0:01:55]} 2. c4 {[%emt 0:00:14]} Nf6 {[%emt 0:00:12]} 3. Nc3 {[%emt 0:00:13]} c6 {[%emt 0:00:41]} 4. Nf3 {[%emt 0:00:21]} g6 {[%emt 0:00:45]} 5. Bg5 {[%emt 0:02:11]} Bg7 {[%emt 0:00:47]} 6. Qd2 {[%emt 0:04:23]} dxc4 {[%emt 0:03:45]} 7. a4 {[%emt 0:00:49]} h6 {[%emt 0:09:04]} 8. Bf4 {[%emt 0:01:40]} Nd5 {[%emt 0:00:14]} 9. Be5 {[%emt 0:01:04]} O-O {[%emt 0:02:10]} 10. e4 {[%emt 0:01:45]} Nxc3 {[%emt 0:00:23]} 11. Qxc3 {[%emt 0:00:15]} Bxe5 {[%emt 0:01:59]} 12. Nxe5 {[%emt 0:00:31]} Nd7 {[%emt 0:03:22]} 13. Nxc4 {[%emt 0:01:21]} Nf6 {[%emt 0:01:07]} 14. Bd3 {[%emt 0:00:58]} Be6 {[%emt 0:00:48]} 15. O-O {[%emt 0:03:13]} Bxc4 {[%emt 0:01:22]} 16. Qxc4 {[%emt 0:00:16]} Rc8 {[%emt 0:00:46]} 17. Rfe1 {[%emt 0:03:53]} e6 {[%emt 0:00:30]} 18. Rad1 {[%emt 0:04:03]} Qc7 {[%emt 0:01:09]} 19. e5 {[%emt 0:02:02]} Nd5 {[%emt 0:00:16]} 20. Qc1 {[%emt 0:00:29]} Kg7 {[%emt 0:00:14]} 21. Bc4 {[%emt 0:07:12]} Rcd8 {[%emt 0:02:42]} 22. Rd3 {[%emt 0:02:08]} Qe7 {[%emt 0:04:43]} 23. Rh3 {[%emt 0:06:28]} Qg5 {[%emt 0:02:20]} 24. Qd1 {[%emt 0:05:00]} Rd7 {[%emt 0:02:23]} 25. Rg3 {[%emt 0:01:31]} Qd8 {[%emt 0:01:27]} 26. Qg4 {[%emt 0:06:47]} Ne7 {[%emt 0:07:17]} 27. Rd1 {[%emt 0:08:20]} c5 {[%emt 0:05:20]} 28. d5 {[%emt 0:03:44]} Nxd5 {[%emt 0:00:43]} 29. Bb5 {[%emt 0:00:36]} Rc7 {[%emt 0:03:02]} 30. Bd3 {[%emt 0:02:04]} Qg5 {[%emt 0:00:50]} 31. Qe4 {[%emt 0:05:18]} Qf4 {[%emt 0:02:55]} 32. Rxg6+ {[%emt 0:01:16]} fxg6 {[%emt 0:00:02]} 33. Qxg6+ {[%emt 0:00:19]} Kh8 34. Qxe6 {[%emt 0:01:17]} Nb4 {[%emt 0:01:21]} 35. Bc4 {[%emt 0:04:29]} Rg7 {[%emt 0:07:30]} 36. Rf1 {[%emt 0:01:27]} Nc6 {[%emt 0:00:45]} 37. g3 {[%emt 0:02:19]} Nxe5 {[%emt 0:01:12]} 38. Bd5 {[%emt 0:01:02]} Qf6 {[%emt 0:00:58]} 39. Qh3 {[%emt 0:00:18]} Ng4 {[%emt 0:00:24]} 40. Qg2 {[%emt 0:01:21]} b6 {[%emt 0:00:37]} 41. h3 {[%emt 0:00:38]} Nxf2 {[%emt 0:00:53]} 42. Qxf2 {[%emt 0:01:20]} Qxf2+ {[%emt 0:00:41]} 43. Rxf2 {[%emt 0:00:12]} Rxf2 {[%emt 0:00:07]} 44. Kxf2 {[%emt 0:00:07]} Rd7 0-1

[Event "ESP-ch Seniors 2017"]
[Site "Altea"]
[Date "2017.10.07"]
[Round "1"]
[White "Alamillo Sanz, Ildefonso"]
[Black "Serra Olives, Tomas"]
[Result "0-1"]
[ECO "B22"]
[WhiteElo "1803"]
[BlackElo "2146"]
[Annotator "ChessBase"]
[PlyCount "44"]
[EventDate "2017.??.??"]
[EventType "swiss"]
[EventCountry "ESP"]
[TimeControl "5400+30"]

1. e4 {[%emt 0:00:00]} c5 {[%emt 0:00:07]} 2. c3 {[%emt 0:00:00]} e5 {[%emt 0:00:13]} 3. Bc4 {[%emt 0:00:25]} Nf6 {[%emt 0:00:17]} 4. d3 {[%emt 0:00:13]} Nc6 {[%emt 0:02:05]} 5. f4 {[%emt 0:02:37]} d5 {[%emt 0:09:11]} 6. exd5 {[%emt 0:00:19]} Nxd5 {[%emt 0:00:08]} 7. Qf3 {[%emt 0:05:08]} Nf6 {[%emt 0:06:29]} 8. Bb5 {[%emt 0:03:44]} Bd7 {[%emt 0:00:16]} 9. a4 {[%emt 0:07:44]} Bd6 {[%emt 0:03:33]} 10. Ne2 {[%emt 0:09:30]} O-O {[%emt 0:01:04]} 11. f5 {[%emt 0:02:38]} a6 {[%emt 0:02:04]} 12. Bxc6 {[%emt 0:02:37]} Bxc6 {[%emt 0:00:10]} 13. Qh3 {[%emt 0:04:02]} c4 {[%emt 0:01:38]} 14. O-O {[%emt 0:08:24]} cxd3 {[%emt 0:00:34]} 15. Ng3 {[%emt 0:01:10]} e4 {[%emt 0:09:30]} 16. Be3 {[%emt 0:03:37]} Qe7 {[%emt 0:14:50]} 17. Kh1 {[%emt 0:02:21]} Bc5 {[%emt 0:09:39]} 18. Bg5 {[%emt 0:03:25]} e3 {[%emt 0:00:15]} 19. Nh5 {[%emt 0:01:02]} e2 {[%emt 0:00:08]} 20. Nd2 {[%emt 0:02:14]} exf1=Q+ {[%emt 0:01:41]} 21. Rxf1 {[%emt 0:00:24]} Qe2 {[%emt 0:01:08]} 22. Ng3 {[%emt 0:04:54]} Qg4 {[%emt 0:01:47]} 0-1

[Event "ESP-ch Seniors 2017"]
[Site "Altea"]
[Date "2017.10.07"]
[Round "1"]
[White "Polop Navarro, Jose"]
[Black "Dominguez Rueda, Juan"]
[Result "0-1"]
[ECO "E20"]
[WhiteElo "1781"]
[BlackElo "2135"]
[Annotator "ChessBase"]
[PlyCount "32"]
[EventDate "2017.??.??"]
[EventType "swiss"]
[EventCountry "ESP"]
[SourceTitle "playchess.com"]
[Source "ChessBase"]
[SourceQuality "1"]
[TimeControl "5400+30"]

1. d4 {[%emt 0:00:52]} Nf6 {[%emt 0:00:05]} 2. c4 e6 3. Nc3 Bb4 4. Bd2 {[%emt 0:01:43]} c5 {[%emt 0:02:18]} 5. e3 {[%emt 0:00:57]} O-O {[%emt 0:00:38]} 6. Nf3 {[%emt 0:00:06]} d6 {[%emt 0:00:57]} 7. Bd3 {[%emt 0:00:17]} Nc6 {[%emt 0:00:34]} 8. O-O {[%emt 0:00:49]} Re8 {[%emt 0:01:29]} 9. Bc2 {[%emt 0:01:02]} d5 {[%emt 0:05:59]} 10. b3 {[%emt 0:01:11]} dxc4 {[%emt 0:01:24]} 11. dxc5 {[%emt 0:01:36]} cxb3 {[%emt 0:01:24]} 12. Bxb3 {[%emt 0:00:27]} Bxc5 {[%emt 0:00:21]} 13. Qe2 {[%emt 0:00:40]} a6 {[%emt 0:03:24]} 14. Rad1 {[%emt 0:00:12]} Qc7 {[%emt 0:05:40]} 15. e4 {[%emt 0:03:07]} Ng4 {[%emt 0:08:25]} 16. Na4 {[%emt 0:04:37]} Nd4 {[%emt 0:00:24]} 0-1

[Event "ESP-ch Seniors 2017"]
[Site "Altea"]
[Date "2017.10.07"]
[Round "1"]
[White "Beltran Sanz, Felix"]
[Black "Bautista Sanchez, Joan"]
[Result "0-1"]
[ECO "B17"]
[WhiteElo "1744"]
[BlackElo "2123"]
[Annotator "ChessBase"]
[PlyCount "96"]
[EventDate "2017.??.??"]
[EventType "swiss"]
[EventCountry "ESP"]
[SourceTitle "playchess.com"]
[Source "ChessBase"]
[SourceQuality "1"]
[TimeControl "5400+30"]

1. d4 {[%emt 0:00:00]} c6 {[%emt 0:00:14]} 2. e4 {[%emt 0:00:27]} d5 {[%emt 0:00:10]} 3. Nc3 {[%emt 0:00:29]} dxe4 {[%emt 0:00:16]} 4. Nxe4 {[%emt 0:00:15]} Nd7 {[%emt 0:00:39]} 5. Nf3 {[%emt 0:00:22]} Ngf6 {[%emt 0:00:15]} 6. Ng3 {[%emt 0:01:42]} e6 {[%emt 0:00:14]} 7. Bd3 {[%emt 0:00:50]} Bd6 {[%emt 0:00:28]} 8. O-O {[%emt 0:00:35]} Qc7 {[%emt 0:00:12]} 9. c3 {[%emt 0:02:08]} b6 {[%emt 0:00:41]} 10. Qc2 {[%emt 0:02:33]} O-O {[%emt 0:02:57]} 11. Re1 {[%emt 0:05:52]} Bb7 {[%emt 0:01:04]} 12. Ne4 {[%emt 0:05:11]} Nxe4 {[%emt 0:04:59]} 13. Bxe4 {[%emt 0:01:49]} Nf6 {[%emt 0:04:46]} 14. Bg5 {[%emt 0:08:00]} Nxe4 {[%emt 0:00:54]} 15. Rxe4 {[%emt 0:08:34]} c5 {[%emt 0:01:42]} 16. Rh4 {[%emt 0:00:34]} f5 {[%emt 0:00:31]} 17. Qe2 {[%emt 0:03:31]} Rae8 {[%emt 0:00:32]} 18. dxc5 {[%emt 0:05:45]} bxc5 {[%emt 0:01:23]} 19. Re1 {[%emt 0:06:37]} h6 {[%emt 0:05:16]} 20. Bxh6 {[%emt 0:03:43]} gxh6 {[%emt 0:07:56]} 21. Rxh6 {[%emt 0:00:40]} Qg7 {[%emt 0:13:53]} 22. Rh5 {[%emt 0:01:44]} Bf4 {[%emt 0:03:15]} 23. g3 {[%emt 0:06:48]} Qg4 {[%emt 0:02:29]} 24. Nh4 {[%emt 0:03:14]} Qxe2 {[%emt 0:02:04]} 25. Rxe2 {[%emt 0:00:02]} Bb8 {[%emt 0:01:56]} 26. Rg5+ {[%emt 0:04:46]} Kf7 {[%emt 0:01:05]} 27. Rd2 {[%emt 0:03:23]} Rd8 {[%emt 0:00:55]} 28. Rxd8 {[%emt 0:01:53]} Rxd8 {[%emt 0:00:02]} 29. Kf1 {[%emt 0:02:19]} Rd2 {[%emt 0:02:02]} 30. Rh5 {[%emt 0:00:51]} Rxb2 {[%emt 0:01:39]} 31. Rh7+ {[%emt 0:00:17]} Kg8 {[%emt 0:00:23]} 32. Re7 {[%emt 0:00:26]} Bd5 {[%emt 0:00:29]} 33. Ng6 {[%emt 0:01:18]} Bxa2 {[%emt 0:04:40]} 34. h4 {[%emt 0:00:17]} Bd5 {[%emt 0:00:55]} 35. h5 {[%emt 0:00:36]} Bf3 {[%emt 0:00:45]} 36. Ke1 {[%emt 0:00:18]} Bxh5 {[%emt 0:00:35]} 37. Nh4 {[%emt 0:01:23]} Be5 {[%emt 0:03:18]} 38. Rxe6 {[%emt 0:00:25]} Bxc3+ {[%emt 0:00:13]} 39. Kf1 {[%emt 0:00:09]} Bd4 {[%emt 0:00:40]} 40. f3 {[%emt 0:01:10]} Bxf3 {[%emt 0:03:40]} 41. Nxf5 {[%emt 0:01:22]} Bg2+ {[%emt 0:00:51]} 42. Ke1 {[%emt 0:00:19]} Bf2+ {[%emt 0:01:32]} 43. Kd1 {[%emt 0:00:08]} Bh3 {[%emt 0:02:33]} 44. Nh6+ {[%emt 0:03:55]} Kg7 {[%emt 0:00:35]} 45. g4 {[%emt 0:00:17]} Bd4 {[%emt 0:02:13]} 46. Ra6 {[%emt 0:00:48]} Rb6 {[%emt 0:03:16]} 47. Nf5+ {[%emt 0:00:32]} Kf6 {[%emt 0:00:35]} 48. Rxa7 {[%emt 0:00:58]} Bxg4+ {[%emt 0:00:14]} 0-1